bitfinex/quotes_ETHUSD_20240902
["timestamp","ask_amount","ask_price","bid_price","bid_amount"]
[1725301816078,3.95196,2530.4,2530.1,0.30071686]
[1725301816304,2.4023,2530.8,2530.1,0.30071686]
[1725301816481,2.4023,2531.2,2530.4,3.95193]
[1725301816685,3.95046,2531.4,2530.8,3.95131]
[1725301816907,3.95093,2531.1,2530.5,9.991193]
[1725301817492,1.76233705,2531.3,2530.6,0.07151589]
[1725301817493,7.90209,2531.0,2530.6,0.07151589]
[1725301817679,3.95101,2531.0,2530.6,1.47296878]
[1725301818281,3.95102,2531.0,2530.6,1.47296878]
[1725301820723,3.95102,2531.0,2530.6,1.55199292]
[1725301821224,7.9016,2531.2,2530.6,1.55199292]
[1725301821563,7.90154,2531.2,2530.7,1.54949559]
[1725301821690,3.95086,2531.1,2530.7,1.54949559]
[1725301822010,3.95086,2531.1,2530.8,0.07009723]
[1725301822211,3.95086,2531.1,2530.7,1.54949559]
[1725301822522,3.95101,2531.0,2530.8,0.07007694]
[1725301822935,3.95101,2531.0,2530.7,1.54949559]
[1725301823236,3.95101,2531.0,2530.8,0.07009723]
[1725301823441,2.4023,2531.1,2530.8,0.07009723]
[1725301823442,16.07362381,2530.9,2530.8,0.07009723]
[1725301823641,3.95163,2530.6,2530.5,7.28]
[1725301823808,3.95163,2530.6,2530.0,13.54855]
[1725301824136,3.95204,2530.4,2530.1,1.354855]
[1725301824514,3.95175,2530.6,2530.2,2.316]
[1725301825840,8.17137381,2530.9,2530.2,2.316]
[1725301826048,0.66224438,2530.8,2530.2,2.316]
[1725301826200,3.95148,2530.7,2530.2,2.316]
[1725301829109,3.95142,2530.8,2530.2,6.26821]
[1725301829308,3.95142,2530.8,2530.2,2.316]
[1725301829635,3.9511,2531.0,2530.5,6.40933]
[1725301829945,3.9511,2531.0,2530.6,0.07046688]
[1725301831522,7.90218,2531.0,2530.6,0.07046688]
[1725301831844,3.9512,2530.9,2530.6,0.07046688]
[1725301832143,3.9512,2530.9,2530.6,0.71846557]
[1725301832353,3.95104,2531.0,2530.6,0.71846557]
[1725301832530,3.95104,2531.0,2530.6,0.07046688]
[1725301833321,4.172,2532.7,2530.6,0.14949108]
[1725301833549,3.95056,2531.3,2530.9,2.4576]
[1725301833956,3.95056,2531.3,2531.0,0.07022151]
[1725301834366,3.95072,2531.2,2531.0,0.07022151]
[1725301834554,7.90124,2531.3,2531.0,0.07022151]
[1725301834848,3.95056,2531.3,2531.0,0.07022151]
[1725301836036,4.345616,2531.3,2531.0,0.07022151]
[1725301836238,3.95085,2531.1,2530.7,2.4576]
[1725301836467,3.9511,2531.0,2530.8,0.06995518]
[1725301836763,3.9511,2531.0,2530.7,2.4576]
[1725301836965,3.9511,2531.0,2530.9,0.06989215]
[1725301837171,3.9511,2531.0,2530.8,0.06995518]
[1725301837473,3.9511,2531.0,2530.7,2.4576]
[1725301837474,3.9511,2531.0,2530.9,0.06981775]
[1725301837770,3.95085,2531.1,2530.7,2.4576]
[1725301837982,3.95085,2531.1,2530.9,0.06981775]
[1725301838124,3.95085,2531.1,2530.8,0.06988078]
[1725301838325,3.95085,2531.1,2531.0,0.06975473]
[1725301838826,3.95062,2531.3,2530.8,0.07902444]
[1725301839022,7.90029,2531.6,2530.9,2.52741775]
[1725301839227,3.95012,2531.6,2531.0,2.4576]
[1725301839423,3.95042,2531.4,2531.1,0.06970523]
[1725301839674,3.95061,2531.3,2531.1,0.06970523]
[1725301840452,3.95039,2531.4,2531.1,0.06970523]
[1725301840640,3.95039,2531.4,2531.1,0.71754175]
[1725301840842,3.95039,2531.4,2531.1,0.06970523]
[1725301845875,3.95056,2531.3,2531.1,0.06970523]
[1725301846588,3.9504,2531.4,2531.1,0.06970523]
[1725301847437,3.95055,2531.3,2531.1,0.06970523]
[1725301848445,3.95039,2531.4,2531.1,0.06970523]
[1725301851064,3.94985,2531.8,2531.3,3.95052]
[1725301851267,3.94985,2531.8,2531.4,2.48751428]
[1725301852156,3.94985,2531.8,2531.4,6.43789428]
[1725301852371,3.94985,2531.8,2531.4,7.47675171]
[1725301853087,6.20605,2532.1,2531.4,2.48751428]
[1725301853294,7.90044,2531.5,2531.4,0.06841428]
[1725301853496,3.95069,2531.2,2531.1,3.0]
[1725301853640,3.95069,2531.2,2531.1,0.06841401]
[1725301854376,3.95086,2531.1,2530.9,2.4191]
[1725301855711,3.951,2531.0,2530.8,3.0]
[1725301855913,7.90211,2531.0,2530.8,3.0]
[1725301856198,7.90211,2531.0,2530.6,5.4191]
[1725301856359,3.951,2531.0,2530.6,8.008178]
[1725301857010,3.951,2531.0,2530.6,11.959788]
[1725301858081,3.951,2531.0,2530.6,8.008178]
[1725301859381,3.951,2531.0,2530.7,1.1959878]
[1725301859709,3.951,2531.0,2530.7,4.26489057]
[1725301861808,3.95131,2530.8,2530.7,0.06890277]
[1725301862107,7.90262,2530.8,2530.5,3.0]
[1725301862425,7.90262,2530.8,2530.7,0.06689215]
[1725301862713,3.95178,2530.5,2530.4,7.28]
[1725301862945,3.95178,2530.5,2530.2,21.24519514]
[1725301863082,3.95195,2530.4,2530.2,2.2652]
[1725301864328,3.95163,2530.6,2530.2,2.2652]
[1725301864513,3.95181,2530.5,2530.2,2.2652]
[1725301867100,3.95181,2530.5,2530.1,3.0]
[1725301867336,3.95235,2530.2,2530.0,2.3156]
[1725301867489,3.95235,2530.2,2529.8,21.29559514]
[1725301867490,3.95241,2530.1,2529.8,21.29559514]
[1725301867683,3.95235,2530.2,2529.8,18.97999514]
[1725301869037,3.95242,2530.1,2529.8,18.97999514]
[1725301869404,7.9047,2530.2,2529.8,18.97999514]
[1725301869616,7.9047,2530.2,2529.8,22.9949307]
[1725301869813,3.95235,2530.2,2529.8,22.9949307]
[1725301870026,3.95203,2530.4,2529.9,6.43301]
[1725301870206,3.95202,2530.4,2530.0,2.94279407]
[1725301871533,3.95202,2530.4,2530.0,6.89533407]
[1725301871827,7.90405,2530.4,2530.0,2.94279407]
[1725301872036,3.95227,2530.2,2529.9,2.4804]
[1725301872390,3.95253,2530.1,2529.9,2.4804]
[1725301872591,3.95227,2530.2,2529.9,2.4804]
[1725301873212,7.90463,2530.2,2529.9,2.4804]
[1725301873415,3.95227,2530.2,2529.7,13.65723]
[1725301873625,3.95227,2530.2,2529.7,17.67216556]
[1725301874400,3.95227,2530.2,2529.8,0.06611583]
[1725301874699,3.95227,2530.2,2529.7,17.67216556]
[1725301874924,3.95227,2530.2,2529.8,0.06614957]
[1725301875125,3.95243,2530.1,2529.8,0.06614957]
[1725301875315,3.95243,2530.1,2529.7,17.67216556]
[1725301875514,3.95243,2530.1,2529.8,2.91358185]
[1725301875934,3.95227,2530.2,2529.8,2.91358185]
[1725301876237,7.90461,2530.2,2529.8,2.91358185]
[1725301877208,3.95244,2530.1,2529.8,2.91358185]
[1725301879018,3.95226,2530.2,2529.8,2.91358185]
[1725301880313,7.9046,2530.2,2529.8,2.91358185]
[1725301881239,3.95243,2530.1,2529.8,2.91358185]
[1725301881658,3.95226,2530.2,2529.8,2.91358185]
[1725301882114,7.9046,2530.2,2529.8,2.91358185]
[1725301882315,3.95226,2530.2,2529.8,2.91358185]
[1725301882516,7.90461,2530.2,2529.8,2.91358185]
[1725301882840,3.95243,2530.1,2529.8,2.91358185]
[1725301884354,3.95243,2530.1,2529.8,0.06615632]
[1725301884719,3.95224,2530.3,2529.7,14.34502556]
[1725301884925,3.95227,2530.2,2529.8,0.06648028]
[1725301885327,3.95227,2530.2,2529.7,14.34502556]
[1725301885532,3.95227,2530.2,2529.9,0.06642394]
[1725301885748,3.95227,2530.2,2529.8,5.45386959]
[1725301885933,3.95227,2530.2,2530.0,0.06636087]
[1725301886136,3.95227,2530.2,2529.9,0.06642394]
[1725301886467,3.95168,2530.6,2529.9,0.06642394]
[1725301886468,3.95172,2530.6,2530.1,3.9524]
[1725301886686,7.9035,2530.6,2530.1,3.9524]
[1725301886812,7.9035,2530.6,2530.2,0.06620098]
[1725301887012,3.95195,2530.4,2530.2,0.06620098]
[1725301887217,3.9521,2530.3,2530.2,0.06620098]
[1725301887457,3.9521,2530.3,2529.7,6.43254]
[1725301887626,7.90431,2530.3,2530.2,0.06619423]
[1725301887839,3.95263,2530.0,2529.5,16.71287]
[1725301888069,3.95263,2530.0,2529.6,3.0]
[1725301888354,3.95272,2529.9,2529.6,3.0]
[1725301888555,3.95272,2529.9,2529.5,2.4796]
[1725301888739,3.953,2529.8,2529.5,5.4796]
[1725301889155,3.953,2529.8,2529.5,2.4796]
[1725301889355,3.953,2529.8,2529.6,0.06664695]
[1725301891156,3.953,2529.8,2529.7,0.06658386]
[1725301891568,3.953,2529.8,2529.4,5.4141]
[1725301891866,3.95272,2529.9,2529.7,0.06658386]
[1725301892019,3.95272,2529.9,2529.4,13.46152861]
[1725301892214,3.95272,2529.9,2529.8,0.06652078]
[1725301892430,3.95253,2530.1,2529.5,2.4973]
[1725301892656,3.95253,2530.1,2529.8,0.06673006]
[1725301892863,3.95253,2530.1,2529.7,2.4973]
[1725301893071,3.95253,2530.1,2529.9,0.06666698]
[1725301893220,3.95253,2530.1,2529.8,0.06672331]
[1725301893420,3.95253,2530.1,2529.7,3.15024401]
[1725301893633,3.95253,2530.1,2529.9,0.06666023]
[1725301893820,3.95253,2530.1,2529.8,0.06672331]
[1725301894046,3.95253,2530.1,2529.8,0.71700473]
[1725301894250,3.95253,2530.1,2529.9,0.06660622]
[1725301894616,3.95253,2530.1,2529.7,2.4973]
[1725301894845,3.95253,2530.1,2530.0,0.06663767]
[1725301895020,3.95253,2530.1,2529.7,2.4973]
[1725301895316,3.95253,2530.1,2529.8,0.06676382]
[1725301895516,3.95253,2530.1,2529.7,3.537643]
[1725301895762,3.95253,2530.1,2529.8,0.06676382]
[1725301896264,3.95259,2530.0,2529.5,6.41512]
[1725301896420,3.95278,2529.9,2529.5,2.4618]
[1725301897181,3.95278,2529.9,2529.5,6.41513]
[1725301897328,3.95278,2529.9,2529.6,1.73834156]
[1725301897959,3.95288,2529.8,2529.6,1.73834156]
[1725301898170,3.95288,2529.8,2529.5,2.4618]
[1725301900260,3.95273,2529.9,2529.5,2.4618]
[1725301904410,3.95273,2529.9,2529.6,0.06732214]
[1725301908210,3.95303,2529.7,2529.6,0.06732214]
[1725301910002,3.9529,2529.8,2529.6,0.06732214]
[1725301910684,3.95303,2529.7,2529.6,0.06732214]
[1725301911069,3.95303,2529.7,2529.4,3.0]
[1725301911271,3.95303,2529.7,2529.6,0.06733565]
[1725301911503,3.95303,2529.7,2529.5,0.06739874]
[1725301911861,3.95303,2529.7,2529.6,0.06734915]
[1725301912194,3.95303,2529.7,2529.4,3.0]
[1725301912401,3.95303,2529.7,2529.6,0.06738291]
[1725301912607,3.95303,2529.7,2529.4,3.0]
[1725301912768,3.9529,2529.8,2529.6,0.06738291]
[1725301912965,3.95281,2529.9,2529.5,2.3954]
[1725301913214,3.95281,2529.9,2529.7,0.06731982]
[1725301913413,3.95281,2529.9,2529.6,0.60692291]
[1725301913587,3.95281,2529.9,2529.8,0.06725673]
[1725301913923,3.95281,2529.9,2529.5,2.3954]
[1725301914117,3.95281,2529.9,2529.8,0.06725673]
[1725301914282,3.95281,2529.9,2529.5,2.3954]
[1725301914487,3.95281,2529.9,2529.8,0.06725673]
[1725301914714,3.9527,2530.0,2529.5,2.3954]
[1725301915016,3.95272,2529.9,2529.5,2.3954]
[1725301915310,3.95272,2529.9,2529.5,6.34872]
[1725301915486,3.95272,2529.9,2529.6,1.330208]
[1725301918597,4.2231763,2530.5,2529.6,1.330208]
[1725301918598,2.266,2530.4,2529.7,2.3341]
[1725301918799,3.95194,2530.4,2530.0,2.3341]
[1725301919141,3.95213,2530.3,2530.0,2.3341]
[1725301919315,3.95213,2530.3,2530.1,0.0670675]
[1725301920049,3.95181,2530.5,2530.1,0.0670675]
[1725301920200,3.95181,2530.5,2530.1,0.70245625]
[1725301920396,3.95195,2530.4,2530.1,0.0670675]
[1725301920633,3.9518,2530.5,2530.1,0.0670675]
[1725301921740,3.95197,2530.4,2530.1,0.0670675]
[1725301925672,2.266,2530.6,2530.1,0.0670675]
[1725301925673,3.95168,2530.6,2530.1,0.0670675]
[1725301925953,3.95168,2530.6,2530.2,2.252]
[1725301926236,3.95168,2530.6,2530.3,0.06631344]
[1725301926440,3.95158,2530.7,2530.2,6.20418]
[1725301926604,3.95158,2530.7,2530.4,0.06625038]
[1725301926802,3.95158,2530.7,2530.3,1.08708899]
[1725301926803,7.90314,2530.7,2530.3,0.06627969]
[1725301927003,6.5535763,2531.3,2530.4,2.252]
[1725301927206,6.5535763,2531.3,2530.4,9.59820988]
[1725301927443,2.3304,2531.3,2530.4,9.59820988]
[1725301928006,3.95093,2531.1,2530.6,3.95155]
[1725301928207,3.95093,2531.1,2530.7,0.637345]
[1725301928546,7.90186,2531.1,2530.7,0.7031835]
[1725301929035,3.95093,2531.1,2530.7,0.7031835]
[1725301929222,3.95093,2531.1,2530.8,2.3621]
[1725301929422,3.95093,2531.1,2530.8,2.42787546]
[1725301930373,3.95065,2531.3,2530.8,3.12955251]
[1725301930511,3.95024,2531.5,2530.9,3.95107]
[1725301930721,3.95038,2531.4,2530.9,8.54004455]
[1725301930921,3.95038,2531.4,2531.0,0.06554142]
[1725301931661,3.95024,2531.5,2531.0,4.01653142]
[1725301931856,3.95024,2531.5,2531.1,2.3855]
[1725301932025,7.90059,2531.5,2531.1,2.45082321]
[1725301932225,3.95024,2531.5,2531.1,2.45082321]
[1725301932425,7.90057,2531.5,2531.1,2.45082321]
[1725301933180,3.95024,2531.5,2531.1,2.45082321]
[1725301933491,3.95024,2531.5,2531.2,0.35475828]
[1725301933775,7.90054,2531.5,2531.3,0.06453586]
[1725301933959,1.16331763,2532.3,2531.3,0.06453586]
[1725301934126,3.94944,2532.0,2531.4,6.24365]
[1725301934573,3.94944,2532.0,2531.5,0.06440985]
[1725301935027,3.94961,2531.9,2531.5,0.06440985]
[1725301936271,3.94944,2532.0,2531.5,0.69521583]
[1725301936481,3.94976,2531.8,2531.5,0.69521583]
[1725301937577,3.9496,2531.9,2531.5,0.69521583]
[1725301937775,3.9496,2531.9,2531.5,0.06440985]
[1725301937977,3.94977,2531.8,2531.5,0.06440985]
[1725301939290,3.94978,2531.8,2531.5,0.06440985]
[1725301942066,3.94991,2531.7,2531.5,0.06440985]
[1725301947018,3.95007,2531.6,2531.5,0.06440985]
[1725301947169,3.95007,2531.6,2531.2,2.43]
[1725301947364,3.95007,2531.6,2531.3,0.06394227]
[1725301947582,3.95007,2531.6,2531.2,3.948171]
[1725301947755,3.95007,2531.6,2531.3,0.06394227]
[1725301947954,3.95007,2531.6,2531.2,3.948171]
[1725301948281,3.95007,2531.6,2531.3,0.06394227]
[1725301948472,3.95007,2531.6,2531.2,3.948171]
[1725301948685,3.95007,2531.6,2531.4,0.06387926]
[1725301948888,3.95007,2531.6,2531.2,3.948171]
[1725301949088,3.95007,2531.6,2531.5,0.06381626]
[1725301949259,3.95007,2531.6,2531.2,3.948171]
[1725301949452,3.95007,2531.6,2531.5,0.06381626]
[1725301949667,3.95007,2531.6,2531.2,3.948171]
[1725301949868,7.90138,2531.2,2531.1,7.28]
[1725301950380,12.08189276,2531.2,2531.1,7.28]
[1725301952094,10.32458,2531.2,2531.1,7.28]
[1725301952492,3.9513,2530.9,2530.6,2.43]
[1725301957718,3.95103,2531.0,2530.6,3.368192]
[1725301957874,3.95103,2531.0,2530.6,7.319812]
[1725301958616,3.95086,2531.1,2530.6,11.271352]
[1725301958820,3.95086,2531.1,2530.7,2.3593]
[1725301958991,3.95103,2531.0,2530.7,3.3842032]
[1725301963927,3.95087,2531.1,2530.7,3.3842032]
[1725301964522,3.95087,2531.1,2530.8,0.05637142]
[1725301965032,3.95087,2531.1,2530.9,0.05630839]
[1725301965624,3.95087,2531.1,2531.0,0.05624536]
[1725301965849,3.95029,2531.5,2531.1,2.3637]
[1725301966133,3.95029,2531.5,2531.1,3.00078654]
[1725301966343,3.95007,2531.6,2531.2,4.00675912]
[1725301966482,7.90024,2531.6,2531.2,0.05609912]
[1725301966684,3.95023,2531.5,2531.2,0.69315603]
[1725301967434,3.95007,2531.6,2531.2,0.69315603]
[1725301968231,7.90026,2531.6,2531.2,0.69315603]
[1725301969302,3.95007,2531.6,2531.2,0.69315603]
[1725301970023,3.95024,2531.5,2531.2,0.69315603]
[1725301970224,3.95053,2531.3,2531.2,0.05609912]
[1725301970383,3.95039,2531.4,2531.2,0.05609912]
[1725301971538,3.95053,2531.3,2531.2,0.05609912]
[1725301972583,3.95039,2531.4,2531.2,0.05609912]
[1725301972786,7.9009,2531.4,2531.2,0.05609912]
[1725301972982,3.95039,2531.4,2531.2,0.05609912]
[1725301974308,3.95039,2531.4,2531.2,0.29807903]
[1725301975635,3.95039,2531.4,2531.2,0.05609912]
[1725301978060,7.90088,2531.4,2531.2,0.05609912]
[1725301978216,3.95053,2531.3,2531.2,0.05609912]
[1725301978633,3.95053,2531.3,2530.9,6.24669]
[1725301978867,3.95053,2531.3,2531.2,0.05576902]
[1725301979157,3.95053,2531.3,2531.0,1.46554173]
[1725301979361,3.95053,2531.3,2531.2,0.05576902]
[1725301979565,3.95053,2531.3,2531.1,0.05583203]
[1725301979728,3.95053,2531.3,2531.2,0.05576902]
[1725301980138,3.95053,2531.3,2530.9,5.2956]
[1725301980474,3.95053,2531.3,2531.0,1.46555673]
[1725301980643,3.95053,2531.3,2531.0,1.52145178]
[1725301981153,9.6584146,2531.5,2531.0,1.52145178]
[1725301981357,7.90063,2531.5,2531.1,1.07681318]
[1725301981671,7.90063,2531.5,2531.2,0.05576902]
[1725301981828,3.95038,2531.4,2531.2,0.05576902]
[1725301984255,3.95053,2531.3,2531.2,0.05576902]
[1725301984476,12.8694356,2531.3,2531.2,0.05576902]
[1725301984634,3.95093,2531.1,2530.9,3.0]
[1725301985119,3.95108,2531.0,2530.8,7.28]
[1725301986221,7.90156,2531.2,2530.8,7.28]
[1725301986424,3.95086,2531.1,2530.8,7.28]
[1725301986646,3.95101,2531.0,2530.8,7.28]
[1725301987603,3.95154,2530.7,2530.5,2.4827]
[1725301991214,3.95154,2530.7,2530.4,3.0]
[1725301991989,7.90309,2530.7,2530.4,3.0]
[1725301992409,3.95154,2530.7,2530.4,3.0]
[1725301993094,3.95134,2530.8,2530.4,4.669105]
[1725301993419,3.95134,2530.8,2530.5,2.4373]
[1725301994393,3.95124,2530.9,2530.6,0.05648404]
[1725301994583,8.1081346,2531.1,2530.6,0.05648404]
[1725301994584,5.7086346,2531.1,2530.7,2.2549]
[1725301994903,5.7086346,2531.1,2530.8,0.05635796]
[1725301995275,5.7086346,2531.1,2530.7,2.2549]
[1725301995276,3.95103,2531.0,2530.7,2.2549]
[1725301995471,3.95103,2531.0,2530.9,0.05629493]
[1725301995717,3.95103,2531.0,2530.8,0.05635796]
[1725301995915,3.95103,2531.0,2530.9,0.05629493]
[1725301996117,7.90218,2531.0,2530.9,0.05629493]
[1725301996414,3.95118,2530.9,2530.5,2.4065]
[1725301996615,7.90245,2530.9,2530.5,4.070349]
[1725301996818,3.95118,2530.9,2530.5,4.070349]
[1725301999024,5.7093546,2530.7,2530.3,7.28]
[1725301999179,5.7093546,2530.7,2530.1,13.47088751]
[1725301999180,2.4666,2530.4,2530.1,12.24]
[1725301999382,3.9521,2530.3,2530.1,12.24]
[1725301999681,3.95225,2530.2,2530.1,12.24]
[1725302000583,7.90482,2530.1,2530.0,18.97999514]
[1725302000820,3.95264,2530.0,2529.8,18.97999514]
[1725302001326,3.95241,2530.1,2529.8,18.97999514]
[1725302002385,3.95227,2530.2,2529.8,18.97999514]
[1725302002753,3.95227,2530.2,2529.8,22.77303305]
[1725302003436,3.95227,2530.2,2529.9,2.2527]
[1725302005894,3.95265,2530.0,2529.7,2.4414]
[1725302006115,3.95273,2529.9,2529.5,5.4414]
[1725302006319,3.95273,2529.9,2529.5,8.03473851]
[1725302007127,3.95273,2529.9,2529.5,5.4414]
[1725302008161,3.95249,2530.1,2529.5,9.47380135]
[1725302008456,3.95222,2530.3,2529.7,3.95294]
[1725302009466,3.95241,2530.1,2529.8,0.0499314]
[1725302009817,3.95241,2530.1,2529.7,3.95294]
[1725302010018,3.95241,2530.1,2529.8,0.6739954]
[1725302010679,2.4491,2530.6,2530.0,3.95246]
[1725302010821,3.95116,2530.9,2530.2,2.4789]
[1725302011024,3.95149,2530.7,2530.3,0.0506787]
[1725302011220,3.95149,2530.7,2530.2,6.43113]
[1725302011536,3.95149,2530.7,2530.3,0.05067197]
[1725302012080,3.95149,2530.7,2530.4,0.05060891]
[1725302012524,3.95149,2530.7,2530.2,7.50029495]
[1725302012719,3.95149,2530.7,2530.5,0.05054586]
[1725302012920,3.95149,2530.7,2530.2,6.43113]
[1725302013150,3.95149,2530.7,2530.6,0.05048282]
[1725302013352,3.95149,2530.7,2530.2,7.50029495]
[1725302013566,3.95149,2530.7,2530.6,0.05048282]
[1725302013767,3.95149,2530.7,2530.2,6.43113]
[1725302014256,3.95149,2530.7,2530.3,0.05067197]
[1725302014758,3.95149,2530.7,2530.2,6.43113]
[1725302014963,3.95149,2530.7,2530.4,0.05060891]
[1725302015262,3.95149,2530.7,2530.5,0.05054586]
[1725302015670,3.95149,2530.7,2530.2,6.43113]
[1725302015837,3.95149,2530.7,2530.6,0.05015322]
[1725302016031,3.95149,2530.7,2530.2,6.43113]
[1725302016262,3.95149,2530.7,2530.3,0.05034238]
[1725302016263,3.95172,2530.6,2530.3,0.05034238]
[1725302016633,3.95172,2530.6,2530.1,3.95239]
[1725302016959,3.95172,2530.6,2530.2,0.05041889]
[1725302017983,3.95184,2530.5,2530.2,0.05041889]
[1725302018388,3.9521,2530.3,2530.0,9.7683]
[1725302018578,3.95195,2530.4,2530.0,6.50323556]
[1725302022280,3.95195,2530.4,2530.0,2.4883]
[1725302022603,3.95211,2530.3,2530.0,2.4883]
[1725302024178,1.7577846,2530.5,2530.0,2.4883]
[1725302024494,3.95241,2530.1,2529.8,5.2592]
[1725302025193,3.95241,2530.1,2529.8,8.80642151]
[1725302025499,3.95258,2530.0,2529.8,3.0]
[1725302026356,6.21868,2530.0,2529.7,7.28]
[1725302027287,3.95279,2529.9,2529.7,7.28]
[1725302029506,3.95279,2529.9,2529.3,9.30006]
[1725302029677,3.95295,2529.8,2529.4,3.39868263]
[1725302029871,3.95295,2529.8,2529.5,0.39868263]
[1725302030057,3.95295,2529.8,2529.4,3.0]
[1725302030263,3.95295,2529.8,2529.5,0.39868284]
[1725302030576,3.95295,2529.8,2529.4,3.0]
[1725302030894,3.95295,2529.8,2529.4,4.97678207]
[1725302033811,3.95295,2529.8,2529.4,8.93026207]
[1725302033973,3.95274,2529.9,2529.4,8.93026207]
[1725302034170,3.95274,2529.9,2529.5,3.95334]
[1725302034370,3.95247,2530.1,2529.7,2.2714]
[1725302035065,7.90498,2530.1,2529.7,2.2714]
[1725302036326,3.9526,2530.0,2529.7,2.2714]
[1725302036522,3.9526,2530.0,2529.6,3.95318]
[1725302036671,3.9526,2530.0,2529.6,5.46865421]
[1725302039505,3.9526,2530.0,2529.7,0.0512455]
[1725302040442,3.95249,2530.1,2529.7,4.0042655]
[1725302040576,7.905,2530.1,2529.8,0.55197397]
[1725302040891,3.95262,2530.0,2529.9,0.05107224]
[1725302041701,3.95262,2530.0,2529.6,1.51547421]
[1725302041874,3.95262,2530.0,2529.9,0.05107224]
[1725302042403,3.95262,2530.0,2529.6,1.51547421]
[1725302042630,3.95262,2530.0,2529.7,0.05119841]
[1725302044198,3.95262,2530.0,2529.7,1.22564767]
[1725302044534,3.95224,2530.3,2529.7,1.22564767]
[1725302044736,3.95242,2530.1,2529.7,1.22564767]
[1725302044940,3.95242,2530.1,2529.7,5.17865767]
[1725302045112,3.95227,2530.2,2529.8,6.26996]
[1725302045317,3.95227,2530.2,2529.9,0.7574661]
[1725302045512,3.95243,2530.1,2529.9,0.05100497]
[1725302046052,3.95227,2530.2,2529.9,0.05100497]
[1725302048038,3.95211,2530.3,2529.9,0.05100497]
[1725302048239,6.35506,2530.4,2530.0,3.95256]
[1725302048437,6.35506,2530.4,2530.1,0.05077791]
[1725302049596,3.95211,2530.3,2530.1,0.05077791]
[1725302050071,3.95211,2530.3,2530.2,0.05071484]
[1725302050276,3.95211,2530.3,2529.9,3.9527]
[1725302050480,3.95211,2530.3,2530.2,0.05071484]
[1725302050653,3.95211,2530.3,2529.9,3.9527]
[1725302050973,3.95211,2530.3,2530.0,0.05084098]
[1725302052964,6.35506,2530.4,2530.0,0.05084098]
[1725302054288,3.95183,2530.5,2530.0,4.00332098]
[1725302054463,3.95183,2530.5,2530.0,5.03062808]
[1725302054955,3.95222,2530.3,2530.0,1.07814808]
[1725302055152,3.95218,2530.3,2530.0,0.05084098]
[1725302055353,3.95234,2530.2,2529.8,2.3171]
[1725302055553,3.95234,2530.2,2530.1,0.05073754]
[1725302055747,3.95234,2530.2,2529.8,2.3171]
[1725302055982,3.95234,2530.2,2530.1,0.05073754]
[1725302056189,3.95234,2530.2,2529.8,2.3171]
[1725302056671,3.95234,2530.2,2529.9,0.05086369]
[1725302062604,7.90512,2530.0,2529.9,0.05086369]
[1725302062799,13.48022106,2530.0,2529.9,0.05086369]
[1725302063012,3.95326,2529.6,2529.3,2.2839]
[1725302063379,3.95326,2529.6,2529.4,0.04670165]
[1725302063899,3.95305,2529.7,2529.4,0.04670165]
[1725302065989,3.95335,2529.5,2529.4,0.04670165]
[1725302066194,7.9067,2529.5,2529.4,0.04670165]
[1725302066519,3.95384,2529.2,2529.0,7.28]
[1725302066968,7.90722,2529.4,2529.0,7.28]
[1725302068106,3.95374,2529.3,2529.0,7.28]
[1725302068312,3.95397,2529.1,2528.9,18.97999514]
[1725302068634,3.95397,2529.1,2528.4,1.64118334]
[1725302068635,3.95446,2528.8,2528.4,2.2553]
[1725302069131,8.0790146,2529.0,2528.4,6.21034]
[1725302069337,3.95436,2528.9,2528.5,0.04528237]
[1725302072414,3.95429,2528.9,2528.5,0.04528237]
[1725302073056,3.95461,2528.7,2528.5,0.04528237]
[1725302074760,3.95461,2528.7,2528.2,9.34988]
[1725302074911,3.95461,2528.7,2528.6,0.04548778]
[1725302075116,3.95478,2528.6,2528.2,5.3945]
[1725302075318,3.95478,2528.6,2528.2,6.329503]
[1725302077627,3.95478,2528.6,2528.2,5.3945]
[1725302079190,3.9546,2528.7,2528.2,9.34987]
[1725302079349,3.95446,2528.8,2528.2,9.34987]
[1725302079974,3.95446,2528.8,2528.3,3.95516]
[1725302084594,3.95446,2528.8,2528.4,4.00113408]
[1725302084759,3.95429,2528.9,2528.5,2.478]
[1725302085322,3.95429,2528.9,2528.6,0.04595778]
[1725302090869,3.95286,2529.9,2528.6,4.00056778]
[1725302090870,2.2996,2529.4,2528.6,4.00056778]
[1725302091094,3.95405,2529.1,2528.6,4.00056778]
[1725302092006,7.90813,2529.1,2528.6,4.00056778]
[1725302092372,3.95405,2529.1,2528.6,4.00056778]
[1725302092857,7.9081,2529.1,2528.6,4.00056778]
[1725302094169,3.95405,2529.1,2528.6,4.00056778]
[1725302094374,7.9081,2529.1,2528.6,4.00056778]
[1725302094606,3.95405,2529.1,2528.6,4.00056778]
[1725302094820,7.9081,2529.1,2528.6,4.00056778]
[1725302095922,3.95405,2529.1,2528.7,6.25718]
[1725302096070,5.7113046,2529.4,2528.8,2.3619]
[1725302096266,3.95368,2529.3,2528.8,6.36226284]
[1725302096467,3.95368,2529.3,2528.9,3.95428]
[1725302096881,3.95368,2529.3,2529.0,0.04588658]
[1725302098021,3.95382,2529.2,2529.0,0.04588658]
[1725302098322,5.7116046,2529.2,2528.8,6.31633]
[1725302098527,5.7116046,2529.2,2529.1,0.04582346]
[1725302098720,5.7116046,2529.2,2528.3,7.28]
[1725302098721,3.95419,2529.0,2528.6,2.2643]
[1725302098927,3.95447,2528.8,2528.6,2.2643]
[1725302099334,3.95428,2528.9,2528.6,2.2643]
[1725302099633,3.95428,2528.9,2528.7,0.04607598]
[1725302100739,5.7122246,2528.8,2528.7,0.04607598]
[1725302101050,5.7122246,2528.8,2528.3,13.72161]
[1725302101225,5.7122246,2528.8,2528.7,0.04607598]
[1725302101394,5.7122246,2528.8,2528.3,13.72161]
[1725302102105,5.7122246,2528.8,2528.4,0.04626542]
[1725302102847,3.95428,2528.9,2528.4,4.00131542]